bitfinex/quotes_SOLUSD_20250902
["timestamp","ask_amount","ask_price","bid_price","bid_amount"]
[1756796861357,60.47390569,203.9,203.89,0.03]
[1756796861656,59.82995889,203.9,203.89,0.03]
[1756796861860,65.37827057,203.9,203.89,0.03]
[1756796863540,68.10171323,203.9,203.89,0.03]
[1756796865352,59.82995889,203.9,203.89,0.03]
[1756796865662,68.10171323,203.9,203.89,0.03]
[1756796867443,63.30152136,203.9,203.89,0.03]
[1756796868251,59.82995889,203.9,203.89,0.03]
[1756796868462,63.30152136,203.9,203.89,0.03]
[1756796869372,59.82995889,203.9,203.89,0.03]
[1756796869539,63.30152136,203.9,203.89,0.03]
[1756796869746,48.66152136,203.9,203.89,0.03]
[1756796869960,89.06152136,203.9,203.89,0.03]
[1756796872855,39.59559401,203.86,203.77,0.03]
[1756796873170,3.47156247,203.83,203.77,3.50156247]
[1756796873380,40.34,203.83,203.77,3.50156247]
[1756796873544,3.47156247,203.82,203.77,0.03]
[1756796873746,40.34,203.83,203.77,0.03]
[1756796873747,43.81156247,203.83,203.77,3.50156247]
[1756796873947,43.81156247,203.83,203.78,4.90725291]
[1756796874369,44.50156247,203.83,203.78,4.90725291]
[1756796874754,0.69,203.82,203.78,4.90725291]
[1756796874956,43.81156247,203.83,203.78,4.90725291]
[1756796875157,0.69,203.82,203.74,4.90821635]
[1756796875359,44.46156247,203.81,203.75,3.47156247]
[1756796875675,40.3,203.8,203.76,3.47156247]
[1756796875880,40.3,203.8,203.77,4.90749374]
[1756796876097,40.3,203.8,203.77,4.93749374]
[1756796876275,3.47156247,203.83,203.77,8.40905621]
[1756796876483,40.28,203.82,203.77,8.40905621]
[1756796876989,40.28,203.83,203.78,3.47156247]
[1756796877199,14.28559401,203.82,203.77,4.90749374]
[1756796877353,13.59559401,203.82,203.77,8.40905621]
[1756796877560,14.28559401,203.84,203.79,3.47156247]
[1756796877786,54.54559401,203.83,203.79,3.47156247]
[1756796877968,54.54559401,203.83,203.78,4.90725291]
[1756796878294,57.32715648,203.83,203.78,4.90725291]
[1756796878476,0.69,203.82,203.78,4.90725291]
[1756796878866,0.69,203.81,203.78,4.90725291]
[1756796879364,53.85559401,203.83,203.79,0.03]
[1756796879558,0.69,203.82,203.79,0.03]
[1756796880482,53.85559401,203.83,203.79,0.03]
[1756796880690,58.01715648,203.83,203.79,0.03]
[1756796880980,0.69,203.82,203.79,0.03]
[1756796881386,0.69,203.81,203.79,0.03]
[1756796881775,58.01715648,203.83,203.79,0.03]
[1756796882174,0.69,203.82,203.79,0.03]
[1756796882590,133.8,203.89,203.79,3.50156247]
[1756796882889,0.69,203.84,203.79,0.03]
[1756796883202,0.69,203.83,203.79,0.03]
[1756796883581,3.47156247,203.81,203.79,0.03]
[1756796884075,4.16156247,203.81,203.79,0.03]
[1756796884278,0.69,203.8,203.79,0.03]
[1756796884482,17.75715648,203.8,203.79,0.03]
[1756796886504,0.69,203.8,203.68,0.06]
[1756796886697,0.69,203.8,203.72,3.47156247]
[1756796886698,13.59559401,203.78,203.72,3.47156247]
[1756796886884,17.06715648,203.76,203.69,0.06]
[1756796887081,40.24,203.81,203.75,3.47156247]
[1756796887402,40.24,203.81,203.76,3.47156247]
[1756796887600,0.7,203.8,203.77,4.90749374]
[1756796887770,0.7,203.79,203.75,3.47156247]
[1756796887973,0.7,203.78,203.75,3.47156247]
[1756796888172,43.71156247,203.81,203.75,3.47156247]
[1756796888390,0.7,203.8,203.75,3.47156247]
[1756796888690,0.7,203.79,203.75,3.47156247]
[1756796888876,0.7,203.79,203.76,3.47156247]
[1756796889082,43.71156247,203.81,203.74,17.17875723]
[1756796889295,13.59559401,203.79,203.74,4.90821635]
[1756796889492,0.7,203.78,203.74,8.37977882]
[1756796889691,4.17156247,203.8,203.74,8.37977882]
[1756796889894,0.7,203.8,203.75,3.47156247]
[1756796890095,0.7,203.79,203.75,3.47156247]
[1756796891516,0.7,203.82,203.78,3.47156247]
[1756796891819,40.16,203.81,203.78,3.47156247]
[1756796892014,40.86,203.81,203.78,3.47156247]
[1756796892217,40.86,203.81,203.77,3.47156247]
[1756796892398,29.47156247,203.83,203.76,17.17707105]
[1756796892399,3.47156247,203.84,203.78,3.47156247]
[1756796892604,40.86,203.83,203.78,3.47156247]
[1756796892937,0.7,203.82,203.78,3.47156247]
[1756796893121,0.7,203.81,203.78,3.47156247]
[1756796893724,0.7,203.81,203.79,4.90701212]
[1756796894316,17.76715648,203.8,203.74,8.37977882]
[1756796894794,14.29559401,203.8,203.75,3.47156247]
[1756796895116,54.41559401,203.8,203.76,3.47156247]
[1756796895298,0.7,203.79,203.76,3.47156247]
[1756796895502,40.12,203.8,203.76,3.47156247]
[1756796895708,40.8,203.82,203.78,8.37881538]
[1756796896211,0.7,203.81,203.78,4.90725291]
[1756796897622,43.57156247,203.82,203.76,3.47156247]
[1756796897826,3.47156247,203.82,203.76,3.47156247]
[1756796897993,44.27156247,203.82,203.76,3.47156247]
[1756796898193,0.7,203.81,203.76,3.47156247]
[1756796898406,0.7,203.81,203.78,0.03]
[1756796898792,43.57156247,203.82,203.78,0.03]
[1756796899009,0.7,203.8,203.78,0.03]
[1756796899602,17.06715648,203.79,203.78,0.03]
[1756796900016,17.76715648,203.79,203.78,0.03]
[1756796900739,17.76715648,203.79,203.69,3.47156247]
[1756796900925,54.31559401,203.78,203.68,3.47156247]
[1756796901131,3.47156247,203.74,203.68,3.47156247]
[1756796901301,4.17156247,203.74,203.68,8.38122468]
[1756796902416,4.17156247,203.74,203.69,3.47156247]
[1756796902417,0.7,203.74,203.69,3.47156247]
[1756796903138,4.90655018,203.81,203.7,3.47156247]
[1756796903306,0.7,203.78,203.73,4.90845727]
[1756796903619,0.7,203.77,203.73,8.38001974]
[1756796905137,44.13156247,203.79,203.73,8.38001974]
[1756796905514,40.66,203.79,203.74,3.47156247]
[1756796905710,0.7,203.78,203.74,3.47156247]
[1756796906340,40.64,203.8,203.75,3.47156247]
[1756796906539,0.7,203.79,203.76,3.47156247]
[1756796906841,39.92,203.8,203.76,3.47156247]
[1756796907050,40.62,203.8,203.76,3.47156247]
[1756796907418,0.7,203.79,203.75,3.47156247]
[1756796907618,0.7,203.78,203.75,3.47156247]
[1756796907813,44.09156247,203.8,203.74,3.47156247]
[1756796908014,40.62,203.8,203.75,3.47156247]
[1756796908241,39.92,203.8,203.76,3.47156247]
[1756796908416,0.7,203.79,203.76,3.47156247]
[1756796909444,0.7,203.79,203.75,3.47156247]
[1756796909752,57.66715648,203.81,203.75,3.47156247]
[1756796910242,56.96715648,203.81,203.75,3.47156247]
[1756796910450,0.7,203.8,203.76,3.47156247]
[1756796910742,14.29559401,203.85,203.79,3.47156247]
[1756796910943,40.56,203.85,203.81,3.47156247]
[1756796911116,0.7,203.84,203.77,0.09]
[1756796911438,0.7,203.87,203.82,3.47156247]
[1756796911643,3.47156247,203.88,203.83,4.90604915]
[1756796911644,54.15559401,203.86,203.83,4.90604915]
[1756796911867,0.7,203.85,203.83,4.90604915]
[1756796912040,0.7,203.84,203.82,4.90624383]
[1756796912351,53.45559401,203.86,203.83,3.47156247]
[1756796912352,0.7,203.86,203.83,3.47156247]
[1756796912554,3.28663628,203.87,203.83,3.47156247]
[1756796912755,0.06,203.89,203.86,3.47156247]
[1756796913071,0.06,203.89,203.88,3.47156247]
[1756796915579,0.06,203.89,203.88,29.56156247]
[1756796915778,0.06,203.89,203.88,34.46640845]
[1756796915941,0.06,203.89,203.88,4.90484598]
[1756796916559,0.06,203.89,203.88,8.37640845]
[1756796920459,0.06,203.89,203.88,4.90484598]
[1756796920664,0.06,203.89,203.88,3.47156247]
[1756796921754,0.06,203.89,203.88,8.46640845]
[1756796921948,0.06,203.89,203.88,8.37640845]
[1756796922844,0.06,203.89,203.88,4.90484598]
[1756796923073,0.06,203.89,203.88,8.37640845]
[1756796923549,0.06,203.89,203.88,7.1243116]
[1756796924573,0.06,203.89,203.88,4.90484598]
[1756796924768,0.06,203.89,203.88,7.1243116]
[1756796926649,0.74,203.89,203.85,4.90556781]
[1756796926849,0.06,203.89,203.86,2.21946562]
[1756796927277,0.74,203.89,203.85,4.90556781]
[1756796927464,0.74,203.89,203.86,2.21946562]
[1756796928445,0.74,203.89,203.85,4.90556781]
[1756796928649,0.74,203.89,203.87,4.90508657]
[1756796929470,0.06,203.89,203.87,4.90508657]
[1756796929670,0.74,203.89,203.87,4.90508657]
[1756796933579,0.06,203.89,203.87,7.12455219]
[1756796933880,0.06,203.89,203.88,2.21946562]
[1756796934392,0.06,203.89,203.87,4.12455219]
[1756796934588,0.06,203.89,203.88,2.21946562]
[1756796935460,0.06,203.89,203.87,4.12455219]
[1756796935755,0.06,203.89,203.88,7.1243116]
[1756796936481,0.06,203.89,203.88,4.90484598]
[1756796936680,0.06,203.89,203.88,7.1243116]
[1756796936870,0.06,203.89,203.87,26.0]
[1756796937193,0.06,203.89,203.88,2.21946562]
[1756796938064,0.06,203.89,203.88,7.1243116]
[1756796939677,0.06,203.89,203.88,2.21946562]
[1756796940785,0.06,203.89,203.87,26.0]
[1756796941090,0.06,203.89,203.88,2.21946562]
[1756796941783,0.06,203.89,203.88,4.90484598]
[1756796942001,0.06,203.89,203.88,7.1243116]
[1756796943577,0.06,203.89,203.88,4.90484598]
[1756796943784,0.06,203.89,203.88,7.1243116]
[1756796944360,0.74,203.89,203.88,7.1243116]
[1756796944597,0.74,203.89,203.86,2.21946562]
[1756796944776,0.68,203.88,203.86,2.21946562]
[1756796945195,0.68,203.87,203.86,2.21946562]
[1756796945378,0.68,203.87,203.86,7.1247928]
[1756796946095,0.68,203.87,203.84,4.90580847]
[1756796946298,0.68,203.86,203.84,4.90580847]
[1756796946593,0.68,203.85,203.84,4.90580847]
[1756796946972,0.68,203.85,203.83,7.12551477]
[1756796947174,0.68,203.84,203.83,7.12551477]
[1756796947802,2.27946562,203.89,203.83,7.12551477]
[1756796947983,0.68,203.86,203.83,7.12551477]
[1756796948179,0.68,203.85,203.83,4.90604915]
[1756796948498,2.27946562,203.89,203.83,7.12551477]
[1756796948698,0.68,203.85,203.83,7.12551477]
[1756796948990,0.06,203.89,203.84,2.21946562]
[1756796949179,0.68,203.87,203.84,2.21946562]
[1756796949396,0.68,203.86,203.84,2.21946562]
[1756796949613,0.68,203.85,203.83,7.12551477]
[1756796949919,0.06,203.89,203.83,7.12551477]
[1756796950216,0.68,203.85,203.83,7.12551477]
[1756796951390,0.68,203.86,203.83,7.12551477]
[1756796952317,0.68,203.86,203.84,2.21946562]
[1756796952718,0.68,203.85,203.84,2.21946562]
[1756796953309,0.68,203.85,203.84,7.12527409]
[1756796954607,0.06,203.89,203.84,7.12527409]
[1756796954812,0.68,203.88,203.86,2.21946562]
[1756796954989,0.06,203.89,203.86,2.21946562]
[1756796955190,0.68,203.87,203.85,2.21946562]
[1756796955394,0.68,203.86,203.85,2.21946562]
[1756796956189,0.68,203.86,203.84,4.90580847]
[1756796956392,0.68,203.85,203.83,0.03]
[1756796956604,0.68,203.84,203.83,0.03]
[1756796957819,2.89946562,203.84,203.83,0.03]
[1756796957990,13.59559401,203.83,203.8,0.03]
[1756796958189,2.21946562,203.81,203.8,0.03]
[1756796958390,2.89946562,203.82,203.8,0.03]
[1756796958591,13.59559401,203.83,203.8,0.03]
[1756796958592,2.89946562,203.81,203.8,0.03]
[1756796959105,16.49505963,203.81,203.8,0.03]
[1756796961420,14.27559401,203.81,203.8,0.03]
[1756796961609,16.49505963,203.81,203.8,0.03]
[1756796962313,55.73505963,203.81,203.8,0.03]
[1756796963299,60.64159022,203.81,203.8,0.03]
[1756796963697,19.76542403,203.81,203.8,0.03]
[1756796964005,60.62159022,203.81,203.8,0.03]
[1756796965133,21.40159022,203.81,203.8,0.03]
[1756796965339,60.60159022,203.81,203.8,0.03]
[1756796966326,53.45559401,203.81,203.8,0.03]
[1756796966531,21.40159022,203.81,203.8,0.03]
[1756796966733,60.58159022,203.81,203.8,0.03]
[1756796967331,21.40159022,203.81,203.8,0.03]
[1756796967548,60.56159022,203.81,203.8,0.03]
[1756796967734,14.27559401,203.81,203.8,0.03]
[1756796967907,53.43559401,203.81,203.8,0.03]
[1756796970639,55.65505963,203.81,203.8,0.03]
[1756796973814,55.59505963,203.81,203.8,0.03]
[1756796975935,53.33559401,203.81,203.8,0.03]
[1756796976124,55.55505963,203.81,203.8,0.03]
[1756796980042,53.33559401,203.81,203.8,0.03]
[1756796982553,38.98,203.81,203.8,0.03]
[1756796983245,38.96,203.81,203.8,0.03]
[1756796983554,13.65559401,203.84,203.8,2.24946562]
[1756796983727,38.98,203.83,203.81,2.21946562]
[1756796983933,0.06,203.84,203.82,2.21946562]
[1756796984227,38.98,203.83,203.82,2.21946562]
[1756796984853,13.65559401,203.84,203.82,2.21946562]
[1756796985027,38.96,203.83,203.82,2.21946562]
[1756796985229,38.96,203.83,203.8,4.93676931]
[1756796985445,13.59559401,203.82,203.8,0.03]
[1756796985830,14.27559401,203.82,203.8,0.03]
[1756796986230,14.27559401,203.82,203.8,3.50195348]
[1756796986739,38.96,203.83,203.8,4.93677055]
[1756796986951,0.68,203.82,203.81,3.47195348]
[1756796987462,38.96,203.83,203.81,3.47195348]
[1756796987655,39.64,203.83,203.8,0.03]
[1756796987861,39.64,203.83,203.8,3.50195348]
[1756796988051,39.64,203.83,203.8,0.03]
[1756796988245,39.64,203.83,203.81,3.47195348]
[1756796988753,38.96,203.83,203.81,3.47195348]
[1756796988946,39.64,203.83,203.8,3.50195348]
[1756796989265,39.64,203.83,203.81,3.47195348]
[1756796991266,0.68,203.82,203.8,8.40871]
[1756796991771,38.9,203.82,203.81,3.47195348]
[1756796992148,39.58,203.82,203.8,8.40871]
[1756796993152,39.58,203.82,203.8,3.50195348]
[1756796996347,0.68,203.81,203.8,0.03]
[1756796996546,0.68,203.81,203.8,3.50195348]
[1756796997061,38.9,203.82,203.8,3.50195348]
[1756796997264,39.5,203.82,203.8,3.50195348]
[1756796998358,0.68,203.81,203.8,3.50195348]
[1756796999352,0.68,203.81,203.8,0.03]
[1756797001371,39.48,203.81,203.8,0.03]
[1756797001967,56.54754749,203.81,203.8,0.03]
[1756797002559,14.27559401,203.81,203.8,0.03]
[1756797002755,61.41407808,203.81,203.8,0.03]
[1756797002957,3.96567178,203.81,203.8,0.03]
[1756797003270,0.68,203.81,203.8,0.03]
[1756797003973,17.56177176,203.81,203.8,0.03]
[1756797004348,14.27559401,203.81,203.8,0.03]
[1756797004970,39.54,203.81,203.8,0.03]
[1756797005759,38.84,203.81,203.8,3.50195348]
[1756797005985,0.06,203.83,203.8,3.50195348]
[1756797006283,0.06,203.83,203.82,3.47195348]
[1756797006463,0.06,203.83,203.8,0.03]
[1756797006778,0.06,203.83,203.82,3.47195348]
[1756797007466,0.06,203.83,203.82,34.49824334]
[1756797007973,0.06,203.83,203.82,36.46399034]
[1756797008465,0.06,203.83,203.82,36.34399034]
[1756797008784,0.06,203.83,203.82,34.37824334]
[1756797009487,0.06,203.83,203.82,30.90628986]
[1756797009689,0.06,203.83,203.82,34.49824334]
[1756797011977,0.06,203.83,203.82,31.02628986]
[1756797012179,0.06,203.83,203.82,34.49824334]
[1756797012381,0.06,203.83,203.82,34.37824334]
[1756797012878,0.78,203.83,203.81,4.9065086]
[1756797013101,0.78,203.83,203.82,3.47195348]
[1756797013261,0.06,203.83,203.82,3.47195348]
[1756797013668,0.06,203.83,203.81,4.9065086]
[1756797013984,0.06,203.83,203.82,3.47195348]
[1756797014393,0.06,203.83,203.82,34.49824334]
[1756797015085,0.06,203.83,203.82,36.46408734]
[1756797015485,0.06,203.83,203.82,32.87213386]
[1756797015670,0.06,203.83,203.82,36.34408734]
[1756797016272,0.06,203.83,203.82,32.87213386]
[1756797016667,0.06,203.83,203.82,36.34408734]
[1756797017188,0.06,203.83,203.82,36.46408734]
[1756797017562,0.06,203.83,203.82,36.34408734]
[1756797017767,0.06,203.83,203.82,36.46408734]
[1756797018371,0.06,203.83,203.8,3.50195348]
[1756797018372,0.78,203.83,203.8,0.03]
[1756797018590,0.72,203.82,203.8,0.03]
[1756797018992,0.06,203.83,203.8,3.50195348]
[1756797019488,0.72,203.82,203.8,3.50195348]
[1756797019880,0.72,203.82,203.8,0.03]
[1756797020678,0.72,203.82,203.8,4.93677134]
[1756797021296,0.06,203.83,203.8,4.93677134]
[1756797021593,0.72,203.82,203.8,4.93677134]
[1756797023491,0.72,203.81,203.8,0.03]
[1756797023988,0.78,203.83,203.8,0.03]
[1756797024169,0.72,203.82,203.8,0.03]
[1756797024786,0.72,203.81,203.8,0.03]
[1756797027413,0.78,203.83,203.8,0.03]
[1756797027612,0.78,203.83,203.8,3.50195348]
[1756797027983,0.72,203.82,203.8,0.03]
[1756797028495,0.72,203.81,203.8,0.03]
[1756797029701,0.78,203.83,203.8,0.03]
[1756797029901,0.72,203.82,203.8,0.03]
[1756797030415,0.06,203.83,203.8,0.03]
[1756797030627,0.72,203.81,203.8,0.03]
[1756797033232,17.78754749,203.81,203.8,0.03]
[1756797034307,14.31559401,203.81,203.8,0.03]
[1756797034526,17.78754749,203.81,203.8,0.03]
[1756797034915,22.69407808,203.81,203.8,0.03]
[1756797035228,17.78754749,203.81,203.8,0.03]
[1756797036425,22.69407808,203.81,203.8,0.03]
[1756797037213,62.79407808,203.81,203.8,0.03]
[1756797037414,17.60171814,203.81,203.8,0.03]
[1756797037616,61.13367162,203.81,203.8,0.03]
[1756797037934,66.04020221,203.81,203.8,0.03]
[1756797038394,62.75407808,203.81,203.8,0.03]
[1756797038998,64.72098508,203.81,203.8,0.03]
[1756797039207,94.00648811,203.81,203.8,0.03]
[1756797040121,90.72098508,203.81,203.8,0.03]
[1756797040523,94.00557185,203.81,203.8,0.03]
[1756797041540,90.72098508,203.81,203.8,0.03]
[1756797043055,94.00456767,203.81,203.8,0.03]
[1756797043638,71.47652115,203.81,203.8,0.03]
[1756797046734,71.47652115,203.81,203.78,0.03]
[1756797046735,39.59559401,203.79,203.78,0.03]
[1756797047051,39.59559401,203.79,203.77,0.03]
[1756797047052,147.39559401,203.78,203.77,0.03]
[1756797047241,191.46754749,203.78,203.77,0.03]
[1756797047445,193.50135759,203.78,203.77,0.03]
[1756797047826,151.39641158,203.78,203.77,0.03]
[1756797048021,193.50135759,203.78,203.77,0.03]
[1756797048254,198.4086105,203.78,203.77,0.03]
[1756797049257,39.59559401,203.76,203.75,0.03]
[1756797049468,81.68054002,203.76,203.75,0.03]
[1756797049762,82.40054002,203.76,203.75,0.03]
[1756797049940,84.62548602,203.76,203.75,0.03]
[1756797050139,89.5332206,203.76,203.75,0.03]
[1756797051043,47.44827459,203.76,203.75,0.03]
[1756797051249,89.4932206,203.76,203.75,0.03]
[1756797052838,49.6732206,203.76,203.75,0.03]
[1756797053039,89.4932206,203.76,203.75,0.03]
[1756797053665,87.24827459,203.76,203.75,0.03]
[1756797054038,89.4732206,203.76,203.75,0.03]
[1756797056448,47.44827459,203.76,203.75,0.03]
[1756797056858,89.3932206,203.76,203.75,0.03]
[1756797059539,44.04548602,203.76,203.75,0.03]
[1756797059770,88.6332206,203.76,203.75,0.03]
[1756797060159,84.18332859,203.76,203.75,0.03]
[1756797060357,86.4082746,203.76,203.75,0.03]
[1756797060559,13.59559401,203.76,203.75,0.03]
[1756797060757,55.46054002,203.76,203.75,0.03]
[1756797061073,60.3682746,203.76,203.75,0.03]
[1756797062949,61.0882746,203.76,203.75,0.03]
[1756797063272,60.3682746,203.76,203.75,0.03]
[1756797064549,60.3482746,203.76,203.75,0.03]
[1756797065255,13.59559401,203.76,203.75,0.03]
[1756797065586,55.40054002,203.76,203.75,0.03]
[1756797066478,60.3082746,203.76,203.75,0.03]
[1756797066984,60.9682746,203.76,203.75,0.03]
[1756797067469,60.3082746,203.76,203.75,0.03]
[1756797069059,53.11559401,203.76,203.75,0.03]
[1756797069380,55.34054002,203.76,203.75,0.03]
[1756797070278,56.00054002,203.76,203.75,0.03]
[1756797070691,60.9082746,203.76,203.75,0.03]
[1756797071055,60.2482746,203.76,203.75,0.03]
[1756797071567,60.9082746,203.76,203.75,0.03]
[1756797075364,64.19227407,203.76,203.75,0.03]
[1756797076073,60.9082746,203.76,203.75,0.03]
[1756797076270,64.19231906,203.76,203.75,0.03]
[1756797080595,16.87963847,203.76,203.75,0.03]
[1756797080885,61.73187156,203.76,203.75,0.03]
[1756797081189,64.11681757,203.76,203.75,0.03]
[1756797081392,17.54413698,203.76,203.75,0.03]
[1756797081569,59.20908299,203.76,203.75,0.03]
[1756797081895,58.54908299,203.76,203.75,0.03]
[1756797082392,63.45681757,203.76,203.75,0.03]
[1756797082969,64.11681757,203.76,203.75,0.03]
[1756797083182,24.67681757,203.76,203.75,0.03]
[1756797083383,64.13681757,203.76,203.75,0.03]
[1756797083892,61.91187156,203.76,203.75,0.03]
[1756797084189,64.13681757,203.76,203.75,0.03]
[1756797084380,64.09681757,203.76,203.75,0.03]
[1756797085200,59.18908299,203.76,203.75,0.03]
[1756797085494,64.09681757,203.76,203.75,0.03]
[1756797086898,64.05681757,203.76,203.75,0.03]
[1756797087201,24.67681757,203.76,203.75,0.03]
[1756797087384,64.03681757,203.76,203.75,0.03]
[1756797087993,59.12908299,203.76,203.75,0.03]
[1756797088909,64.03681757,203.76,203.75,0.03]
[1756797089081,59.12908299,203.76,203.75,0.03]
[1756797091305,19.76908299,203.76,203.75,0.03]
[1756797091488,59.06908299,203.76,203.75,0.03]
[1756797091696,63.97681757,203.76,203.75,0.03]
[1756797094093,24.67681757,203.76,203.75,0.03]
[1756797094284,63.95681757,203.76,203.75,0.03]
[1756797100694,63.83681757,203.76,203.75,0.03]
[1756797105016,61.61187156,203.76,203.75,0.03]
[1756797105200,63.83681757,203.76,203.75,0.03]
[1756797105812,61.61187156,203.76,203.75,0.03]
[1756797106004,63.77681757,203.76,203.75,0.03]
[1756797106216,63.75681757,203.76,203.75,0.03]
[1756797108715,60.85187156,203.76,203.75,0.03]
[1756797109022,61.52187156,203.76,203.75,0.03]
[1756797109328,63.74681757,203.76,203.75,0.03]
[1756797109529,61.52187156,203.76,203.75,0.03]
[1756797109820,64.99857531,203.76,203.75,0.03]
[1756797119932,61.52187156,203.76,203.75,0.03]
[1756797120128,69.0942411,203.76,203.75,0.03]
[1756797120432,66.96654731,203.76,203.75,0.03]
[1756797120633,66.90654731,203.76,203.75,0.03]
[1756797121004,27.90654731,203.76,203.75,0.03]
[1756797121714,66.90654731,203.76,203.75,0.03]
[1756797123840,66.23654731,203.76,203.75,0.03]
[1756797124925,66.90654731,203.76,203.75,0.03]
[1756797125254,18.85210898,203.76,203.75,0.15]
[1756797125423,57.85210898,203.76,203.75,0.03]
[1756797126627,61.32881273,203.76,203.75,0.03]
[1756797127624,57.85210898,203.76,203.75,0.03]
[1756797127844,61.32881273,203.76,203.75,0.03]
[1756797130179,57.85210898,203.76,203.75,0.03]
[1756797130352,66.23654731,203.76,203.75,0.03]
[1756797130863,66.88654731,203.76,203.75,0.03]
[1756797131455,66.23654731,203.76,203.75,0.03]
[1756797131663,66.88654731,203.76,203.75,0.03]
[1756797133065,79.15588378,203.76,203.72,0.03]
[1756797133290,13.59559401,203.72,203.7,1e-08]
[1756797133470,13.59559401,203.66,203.59,2.118456]
[1756797133670,3.47670375,203.62,203.6,0.15]
[1756797133980,39.0,203.61,203.6,0.15]
[1756797136265,3.47670375,203.62,203.6,0.15]
[1756797136478,39.0,203.61,203.6,0.15]
[1756797137174,39.0,203.61,203.58,4.91204313]
[1756797137372,39.0,203.61,203.58,5.06204313]
[1756797137876,39.0,203.6,203.58,5.06204313]
[1756797138262,39.0,203.6,203.59,0.15]
[1756797138472,42.47670375,203.6,203.57,17.22600232]
[1756797138664,42.47670375,203.6,203.57,5.09227532]
[1756797138972,42.47670375,203.6,203.58,0.15]
[1756797139279,39.0,203.59,203.58,0.15]
[1756797139474,42.47670375,203.6,203.58,0.15]
[1756797139656,42.47670375,203.6,203.57,4.94227532]
[1756797139857,42.47670375,203.6,203.57,5.09227532]
[1756797140571,42.47670375,203.6,203.57,4.94227532]
[1756797141570,42.47670375,203.6,203.57,0.03]
[1756797141571,17.07229776,203.58,203.57,0.03]
[1756797141771,56.07229776,203.58,203.57,0.03]
[1756797141973,56.72229776,203.58,203.57,0.03]
[1756797142162,3.47670375,203.58,203.57,0.03]
[1756797142477,39.0,203.58,203.57,0.03]
[1756797144268,13.59559401,203.64,203.57,3.65670375]
[1756797144472,17.07229776,203.67,203.61,3.47670375]
[1756797144678,13.59559401,203.65,203.61,3.62670375]
[1756797144878,134.45,203.7,203.64,3.47670375]
[1756797145059,52.59559401,203.69,203.65,3.47670375]
[1756797145460,53.24559401,203.69,203.63,0.15]
[1756797145661,53.24559401,203.69,203.66,14.759785]
[1756797146069,52.59559401,203.69,203.66,14.759785]
[1756797146471,53.24559401,203.69,203.67,4.90990327]
[1756797147086,14.24559401,203.69,203.67,4.90990327]
[1756797147269,53.24559401,203.68,203.67,4.90990327]
[1756797148475,53.24559401,203.68,203.66,4.91014435]
[1756797149372,14.24559401,203.68,203.66,4.91014435]
[1756797149563,39.0,203.67,203.66,4.91014435]
[1756797151968,13.59559401,203.66,203.59,38.42901872]
[1756797152277,39.65,203.65,203.61,18.23648775]
[1756797152478,39.65,203.65,203.62,4.91110892]
[1756797152891,14.761964,203.67,203.63,3.47670375]
[1756797153062,39.0,203.66,203.63,3.47670375]
[1756797154573,39.0,203.66,203.64,4.91062659]
[1756797155095,13.59559401,203.69,203.65,3.47670375]
[1756797155264,39.0,203.68,203.65,3.47670375]
[1756797155895,26.02336601,203.69,203.66,3.47670375]
[1756797156091,39.0,203.68,203.65,3.47670375]
[1756797156779,39.0,203.68,203.66,4.91014435]
[1756797157397,39.71,203.68,203.66,4.91014435]
[1756797157567,0.71,203.67,203.66,4.91014435]
[1756797157896,39.0,203.68,203.66,4.91014435]
[1756797158098,39.71,203.68,203.66,4.91014435]